[Event "Titled Tuesday Blitz December 06 Early 2022"]
[White "Manon-og, Ramon Jr."]
[Black "Terzi, Alexei"]
[WhiteFideId "5200776"]
[BlackFideId "13505076"]
[WhiteElo "2359"]
[BlackElo "2547"]
[Result "1-0"]
[Round "07"]
[TimeControl "180+1"]
[Date "2022.12.07"]
[WhiteClock "0:00:18"]
[BlackClock "0:00:02"]

1. e4 {[%clk 0:02:50]}  e6 {[%clk 0:02:59]} 2. d4 {[%clk 0:02:49]}  d5 {[%clk 0:03:00]} 3. Nd2 {[%clk 0:02:49]}  c5 {[%clk 0:03:00]} 4. Ngf3 {[%clk 0:02:47]}  Nc6 {[%clk 0:02:59]} 5. Bb5 {[%clk 0:02:46]}  Nf6 {[%clk 0:02:58]} 6. e5 {[%clk 0:02:45]}  Nd7 {[%clk 0:02:58]} 7. c3 {[%clk 0:02:45]}  Qb6 {[%clk 0:02:57]} 8. Bxc6 {[%clk 0:02:45]}  bxc6 {[%clk 0:02:58]} 9. O-O {[%clk 0:02:46]}  cxd4 {[%clk 0:02:58]} 10. cxd4 {[%clk 0:02:46]}  c5 {[%clk 0:02:59]} 11. dxc5 {[%clk 0:02:43]}  Bxc5 {[%clk 0:02:59]} 12. Nb3 {[%clk 0:02:42]}  Be7 {[%clk 0:02:58]} 13. Be3 {[%clk 0:02:42]}  Qa6 {[%clk 0:02:54]} 14. Bg5 {[%clk 0:02:39]}  Bf8 {[%clk 0:02:38]} 15. Qd2 {[%clk 0:02:30]}  Bb7 {[%clk 0:02:38]} 16. h3 {[%clk 0:02:28]}  h6 {[%clk 0:02:38]} 17. Bh4 {[%clk 0:02:23]}  Rc8 {[%clk 0:02:30]} 18. Rfc1 {[%clk 0:02:21]}  Rxc1+ {[%clk 0:02:29]} 19. Qxc1 {[%clk 0:02:22]}  g5 {[%clk 0:02:20]} 20. Bg3 {[%clk 0:02:21]}  Bg7 {[%clk 0:02:20]} 21. Qc7 {[%clk 0:02:19]}  Qc6 {[%clk 0:02:15]} 22. Rc1 {[%clk 0:02:19]}  Qb6 {[%clk 0:01:59]} 23. Qxb6 {[%clk 0:02:12]}  axb6 {[%clk 0:01:57]} 24. Rc7 {[%clk 0:02:12]}  Ba6 {[%clk 0:01:57]} 25. Ra7 {[%clk 0:01:59]}  Nb8 {[%clk 0:01:38]} 26. Nbd4 {[%clk 0:01:58]}  O-O {[%clk 0:01:37]} 27. b4 {[%clk 0:01:55]}  Bc4 {[%clk 0:01:07]} 28. a4 {[%clk 0:01:54]}  Rc8 {[%clk 0:01:07]} 29. Ra8 {[%clk 0:01:51]}  Bf8 {[%clk 0:00:59]} 30. b5 {[%clk 0:01:49]}  Bg7 {[%clk 0:00:46]} 31. Nc6 {[%clk 0:01:46]}  Kh7 {[%clk 0:00:38]} 32. Rxb8 {[%clk 0:01:42]}  Rc7 {[%clk 0:00:38]} 33. Rxb6 {[%clk 0:01:42]}  Bf8 {[%clk 0:00:36]} 34. a5 {[%clk 0:01:40]}  Bc5 {[%clk 0:00:36]} 35. Rb8 {[%clk 0:01:40]}  d4 {[%clk 0:00:36]} 36. Nfxd4 {[%clk 0:01:38]}  Kg6 {[%clk 0:00:35]} 37. b6 {[%clk 0:01:30]}  Rd7 {[%clk 0:00:36]} 38. Nf3 {[%clk 0:01:24]}  Bd5 {[%clk 0:00:30]} 39. Ncd4 {[%clk 0:01:16]}  Rb7 {[%clk 0:00:30]} 40. Rc8 {[%clk 0:01:10]}  Bb4 {[%clk 0:00:20]} 41. a6 {[%clk 0:01:07]}  Rxb6 {[%clk 0:00:20]} 42. a7 {[%clk 0:01:06]}  Ra6 {[%clk 0:00:21]} 43. Nb5 {[%clk 0:01:01]}  Ba5 {[%clk 0:00:18]} 44. Rg8+ {[%clk 0:00:53]}  Kh7 {[%clk 0:00:17]} 45. Rb8 {[%clk 0:00:50]}  Bb6 {[%clk 0:00:14]} 46. Nd6 {[%clk 0:00:43]}  Kg7 {[%clk 0:00:08]} 47. Ne8+ {[%clk 0:00:33]}  Kg6 {[%clk 0:00:07]} 48. Nf6 {[%clk 0:00:25]}  Bxa7 {[%clk 0:00:08]} 49. Rg8+ {[%clk 0:00:24]}  Kf5 {[%clk 0:00:08]} 50. Kh2 {[%clk 0:00:19]}  Bxf3 {[%clk 0:00:07]} 51. gxf3 {[%clk 0:00:20]}  Ra2 {[%clk 0:00:07]} 52. Ng4 {[%clk 0:00:18]}  Bxf2 {[%clk 0:00:02]} 53. Nxh6# {[%clk 0:00:18]} 1-0


[Site "https://www.chess.com"]

[Event "Titled Tuesday Blitz December 06 Early 2022"]
[White "Manukyan, Sargis A."]
[Black "Putnam, Liam"]
[WhiteFideId "13303970"]
[BlackFideId "30938279"]
[WhiteElo "2556"]
[BlackElo "2730"]
[Result "0-1"]
[Round "07"]
[TimeControl "180+1"]
[Date "2022.12.07"]
[WhiteClock "0:00:13"]
[BlackClock "0:00:11"]

1. d4 {[%clk 0:03:00]}  Nf6 {[%clk 0:02:59]} 2. c4 {[%clk 0:03:01]}  e6 {[%clk 0:03:00]} 3. Nc3 {[%clk 0:03:01]}  Bb4 {[%clk 0:02:59]} 4. e3 {[%clk 0:03:01]}  O-O {[%clk 0:02:59]} 5. Nf3 {[%clk 0:02:48]}  b6 {[%clk 0:02:58]} 6. Bd2 {[%clk 0:02:49]}  Bb7 {[%clk 0:02:58]} 7. Bd3 {[%clk 0:02:48]}  d6 {[%clk 0:02:56]} 8. Qc2 {[%clk 0:02:43]}  Nbd7 {[%clk 0:02:56]} 9. e4 {[%clk 0:02:37]}  c5 {[%clk 0:02:51]} 10. d5 {[%clk 0:02:33]}  exd5 {[%clk 0:02:48]} 11. exd5 {[%clk 0:02:33]}  Re8+ {[%clk 0:02:47]} 12. Kf1 {[%clk 0:02:34]}  Bxc3 {[%clk 0:02:35]} 13. Bxc3 {[%clk 0:02:33]}  b5 {[%clk 0:02:34]} 14. b3 {[%clk 0:02:33]}  a5 {[%clk 0:02:18]} 15. h4 {[%clk 0:02:28]}  a4 {[%clk 0:02:17]} 16. Rh3 {[%clk 0:02:13]}  axb3 {[%clk 0:02:16]} 17. axb3 {[%clk 0:02:12]}  Rxa1+ {[%clk 0:02:05]} 18. Bxa1 {[%clk 0:02:13]}  Qa5 {[%clk 0:02:00]} 19. Bc3 {[%clk 0:02:08]}  Qa3 {[%clk 0:01:53]} 20. Rg3 {[%clk 0:01:58]}  bxc4 {[%clk 0:01:39]} 21. bxc4 {[%clk 0:01:49]}  h6 {[%clk 0:01:28]} 22. Bf5 {[%clk 0:01:33]}  Ne5 {[%clk 0:01:07]} 23. Nxe5 {[%clk 0:01:28]}  dxe5 {[%clk 0:01:06]} 24. Bxe5 {[%clk 0:01:22]}  Qa6 {[%clk 0:01:06]} 25. Bxf6 {[%clk 0:00:55]}  Qxf6 {[%clk 0:01:06]} 26. Kg1 {[%clk 0:00:39]}  Re1+ {[%clk 0:00:49]} 27. Kh2 {[%clk 0:00:38]}  Qa1 {[%clk 0:00:36]} 28. Re3 {[%clk 0:00:30]}  Rxe3 {[%clk 0:00:30]} 29. fxe3 {[%clk 0:00:29]}  Qe5+ {[%clk 0:00:30]} 30. g3 {[%clk 0:00:21]}  Qxe3 {[%clk 0:00:30]} 31. Qe4 {[%clk 0:00:21]}  Qxe4 {[%clk 0:00:15]} 32. Bxe4 {[%clk 0:00:20]}  Kf8 {[%clk 0:00:15]} 33. g4 {[%clk 0:00:19]}  Ba6 {[%clk 0:00:15]} 34. Bd3 {[%clk 0:00:17]}  Ke7 {[%clk 0:00:15]} 35. g5 {[%clk 0:00:14]}  hxg5 {[%clk 0:00:13]} 36. hxg5 {[%clk 0:00:15]}  Kd6 {[%clk 0:00:14]} 37. Kg3 {[%clk 0:00:15]}  Ke5 {[%clk 0:00:14]} 38. Be2 {[%clk 0:00:14]}  Bc8 {[%clk 0:00:08]} 39. Kh4 {[%clk 0:00:12]}  f5 {[%clk 0:00:08]} 40. gxf6 {[%clk 0:00:09]}  gxf6 {[%clk 0:00:07]} 41. Kg3 {[%clk 0:00:09]}  Bf5 {[%clk 0:00:06]} 42. Kf3 {[%clk 0:00:08]}  Bc2 {[%clk 0:00:07]} 43. Ke3 {[%clk 0:00:08]}  f5 {[%clk 0:00:07]} 44. Kd2 {[%clk 0:00:07]}  Be4 {[%clk 0:00:07]} 45. Kc3 {[%clk 0:00:07]}  f4 {[%clk 0:00:05]} 46. Kb3 {[%clk 0:00:07]}  f3 {[%clk 0:00:05]} 47. Bf1 {[%clk 0:00:07]}  Kf4 {[%clk 0:00:06]} 48. d6 {[%clk 0:00:07]}  Bc6 {[%clk 0:00:07]} 49. Bh3 {[%clk 0:00:04]}  f2 {[%clk 0:00:07]} 50. d7 {[%clk 0:00:04]}  Bxd7 {[%clk 0:00:07]} 51. Bf1 {[%clk 0:00:05]}  Ke3 {[%clk 0:00:06]} 52. Kc2 {[%clk 0:00:05]}  Bc6 {[%clk 0:00:07]} 53. Kc1 {[%clk 0:00:05]}  Bf3 {[%clk 0:00:08]} 54. Kc2 {[%clk 0:00:05]}  Be2 {[%clk 0:00:09]} 55. Bg2 {[%clk 0:00:05]}  f1=Q {[%clk 0:00:09]} 56. Bxf1 {[%clk 0:00:06]}  Bxf1 {[%clk 0:00:10]} 57. Kc3 {[%clk 0:00:07]}  Bd3 {[%clk 0:00:09]} 58. Kb3 {[%clk 0:00:07]}  Kd4 {[%clk 0:00:09]} 59. Ka4 {[%clk 0:00:08]}  Bxc4 {[%clk 0:00:09]} 60. Ka3 {[%clk 0:00:09]}  Bd5 {[%clk 0:00:10]} 61. Ka4 {[%clk 0:00:10]}  c4 {[%clk 0:00:10]} 62. Ka3 {[%clk 0:00:11]}  c3 {[%clk 0:00:11]} 63. Ka4 {[%clk 0:00:11]}  c2 {[%clk 0:00:11]} 64. Ka3 {[%clk 0:00:12]}  c1=Q+ {[%clk 0:00:11]} 65. Kb4 {[%clk 0:00:13]}  Qc4+ {[%clk 0:00:11]} 66. Ka3 {[%clk 0:00:13]}  Qb3# {[%clk 0:00:11]} 0-1


[Site "https://www.chess.com"]

[Event "Titled Tuesday Blitz December 06 Early 2022"]
[White "Martinez Reyes, Pedro Ramon"]
[Black "Skibbe, Willi"]
[WhiteFideId "3901807"]
[BlackFideId "4682190"]
[WhiteElo "2556"]
[BlackElo "2375"]
[Result "0-1"]
[Round "07"]
[TimeControl "180+1"]
[Date "2022.12.07"]
[WhiteClock "0:02:00"]
[BlackClock "0:01:26"]

1. d4 {[%clk 0:02:54]}  d5 {[%clk 0:02:59]} 2. c4 {[%clk 0:02:49]}  e6 {[%clk 0:02:57]} 3. Nc3 {[%clk 0:02:47]}  Nf6 {[%clk 0:02:57]} 4. Nf3 {[%clk 0:02:48]}  Be7 {[%clk 0:02:56]} 5. Bg5 {[%clk 0:02:47]}  Nbd7 {[%clk 0:02:55]} 6. cxd5 {[%clk 0:02:47]}  exd5 {[%clk 0:02:53]} 7. e3 {[%clk 0:02:48]}  c6 {[%clk 0:02:52]} 8. Bd3 {[%clk 0:02:49]}  h6 {[%clk 0:02:50]} 9. Bh4 {[%clk 0:02:49]}  O-O {[%clk 0:02:50]} 10. Qc2 {[%clk 0:02:49]}  Re8 {[%clk 0:02:42]} 11. h3 {[%clk 0:02:45]}  Ne4 {[%clk 0:02:37]} 12. Bxe7 {[%clk 0:02:45]}  Qxe7 {[%clk 0:02:36]} 13. O-O {[%clk 0:02:43]}  Nd6 {[%clk 0:02:31]} 14. Rfe1 {[%clk 0:02:40]}  Nf6 {[%clk 0:02:30]} 15. Ne5 {[%clk 0:02:40]}  Bd7 {[%clk 0:02:24]} 16. b4 {[%clk 0:02:39]}  a6 {[%clk 0:02:22]} 17. a4 {[%clk 0:02:39]}  b5 {[%clk 0:02:11]} 18. axb5 {[%clk 0:02:33]}  axb5 {[%clk 0:02:10]} 19. Bf5 {[%clk 0:02:25]}  Bxf5 {[%clk 0:02:05]} 20. Nxc6 {[%clk 0:02:17]}  Bxc2 {[%clk 0:02:02]} 21. Nxe7+ {[%clk 0:02:18]}  Kf8 {[%clk 0:01:55]} 22. Nexd5 {[%clk 0:02:18]}  Nxd5 {[%clk 0:01:51]} 23. Nxd5 {[%clk 0:02:19]}  Rxa1 {[%clk 0:01:45]} 24. Rxa1 {[%clk 0:02:17]}  Bb3 {[%clk 0:01:45]} 25. Nc3 {[%clk 0:02:09]}  Bc4 {[%clk 0:01:43]} 26. f3 {[%clk 0:02:07]}  Rxe3 {[%clk 0:01:40]} 27. Ra3 {[%clk 0:02:05]}  g5 {[%clk 0:01:34]} 28. Kf2 {[%clk 0:02:04]}  Rd3 {[%clk 0:01:34]} 29. d5 {[%clk 0:02:05]}  Bxd5 {[%clk 0:01:30]} 30. Ke2 {[%clk 0:02:02]}  Bc4 {[%clk 0:01:30]} 31. Kf2 {[%clk 0:02:03]}  Kg7 {[%clk 0:01:29]} 32. Nb1 {[%clk 0:02:02]}  Rxa3 {[%clk 0:01:29]} 33. Nxa3 {[%clk 0:02:03]}  Nf5 {[%clk 0:01:26]} 34. g3 {[%clk 0:02:00]} 0-1


[Site "https://www.chess.com"]

[Event "Titled Tuesday Blitz December 06 Early 2022"]
[White "Moksh Amit Doshi"]
[Black "Valle Maytin, Luis Enrique"]
[WhiteFideId "25064967"]
[BlackFideId "3503666"]
[WhiteElo "2560"]
[BlackElo "2408"]
[Result "0-1"]
[Round "07"]
[TimeControl "180+1"]
[Date "2022.12.07"]
[WhiteClock "0:00:40"]
[BlackClock "0:00:07"]

1. e4 {[%clk 0:02:54]}  c6 {[%clk 0:02:59]} 2. Nf3 {[%clk 0:02:48]}  d5 {[%clk 0:03:00]} 3. d3 {[%clk 0:02:49]}  dxe4 {[%clk 0:02:54]} 4. dxe4 {[%clk 0:02:50]}  Qxd1+ {[%clk 0:02:54]} 5. Kxd1 {[%clk 0:02:51]}  Bg4 {[%clk 0:02:54]} 6. Nd2 {[%clk 0:02:49]}  Nd7 {[%clk 0:02:50]} 7. h3 {[%clk 0:02:45]}  Bh5 {[%clk 0:02:47]} 8. g4 {[%clk 0:02:41]}  Bg6 {[%clk 0:02:45]} 9. Nh4 {[%clk 0:02:41]}  Nc5 {[%clk 0:02:42]} 10. Nxg6 {[%clk 0:02:39]}  hxg6 {[%clk 0:02:41]} 11. b3 {[%clk 0:02:38]}  O-O-O {[%clk 0:02:41]} 12. Ke2 {[%clk 0:02:37]}  Nf6 {[%clk 0:02:39]} 13. Bg2 {[%clk 0:02:36]}  Ne6 {[%clk 0:02:35]} 14. e5 {[%clk 0:01:54]}  Nd5 {[%clk 0:02:25]} 15. Bxd5 {[%clk 0:01:54]}  Rxd5 {[%clk 0:02:22]} 16. Bb2 {[%clk 0:01:52]}  Nf4+ {[%clk 0:02:16]} 17. Ke3 {[%clk 0:01:51]}  Ng2+ {[%clk 0:02:13]} 18. Ke2 {[%clk 0:01:50]}  e6 {[%clk 0:02:05]} 19. Ne4 {[%clk 0:01:46]}  Be7 {[%clk 0:01:55]} 20. Rag1 {[%clk 0:01:38]}  Nh4 {[%clk 0:01:24]} 21. f4 {[%clk 0:01:36]}  Rhd8 {[%clk 0:01:21]} 22. Rd1 {[%clk 0:01:36]}  Ng2 {[%clk 0:00:45]} 23. Bc1 {[%clk 0:01:30]}  f5 {[%clk 0:00:27]} 24. exf6 {[%clk 0:01:28]}  gxf6 {[%clk 0:00:26]} 25. c4 {[%clk 0:01:22]}  Rxd1 {[%clk 0:00:19]} 26. Rxd1 {[%clk 0:01:23]}  Rxd1 {[%clk 0:00:18]} 27. Kxd1 {[%clk 0:01:24]}  f5 {[%clk 0:00:18]} 28. Nf2 {[%clk 0:01:14]}  Bd6 {[%clk 0:00:17]} 29. Nd3 {[%clk 0:01:14]}  Nh4 {[%clk 0:00:14]} 30. Ke2 {[%clk 0:01:13]}  Bc7 {[%clk 0:00:07]} 31. Be3 {[%clk 0:01:13]}  Kd7 {[%clk 0:00:07]} 32. g5 {[%clk 0:01:07]}  Ng2 {[%clk 0:00:07]} 33. Bf2 {[%clk 0:01:06]}  Nxf4+ {[%clk 0:00:06]} 34. Nxf4 {[%clk 0:00:59]}  Bxf4 {[%clk 0:00:07]} 35. h4 {[%clk 0:01:00]}  a6 {[%clk 0:00:07]} 36. Kd3 {[%clk 0:00:58]}  e5 {[%clk 0:00:07]} 37. a4 {[%clk 0:00:55]}  Ke6 {[%clk 0:00:07]} 38. Ke2 {[%clk 0:00:55]}  e4 {[%clk 0:00:07]} 39. Be1 {[%clk 0:00:53]}  Be5 {[%clk 0:00:07]} 40. Bf2 {[%clk 0:00:53]}  f4 {[%clk 0:00:07]} 41. Be1 {[%clk 0:00:53]}  Kf5 {[%clk 0:00:08]} 42. Kf2 {[%clk 0:00:52]}  Bd4+ {[%clk 0:00:07]} 43. Kg2 {[%clk 0:00:52]}  Kg4 {[%clk 0:00:07]} 44. b4 {[%clk 0:00:42]}  f3+ {[%clk 0:00:07]} 45. Kf1 {[%clk 0:00:40]}  e3 {[%clk 0:00:07]} 0-1


[Site "https://www.chess.com"]

[Event "Titled Tuesday Blitz December 06 Early 2022"]
[White "Movahed, Sina"]
[Black "Sarana, Alexey"]
[WhiteFideId "42520835"]
[BlackFideId "24133795"]
[WhiteElo "2225"]
[BlackElo "2708"]
[Result "0-1"]
[Round "07"]
[TimeControl "180+1"]
[Date "2022.12.06"]
[WhiteClock "0:00:10"]
[BlackClock "0:01:27"]

1. e4 {[%clk 0:03:00]}  c5 {[%clk 0:03:00]} 2. Nf3 {[%clk 0:03:00]}  d6 {[%clk 0:03:01]} 3. d4 {[%clk 0:03:00]}  cxd4 {[%clk 0:03:01]} 4. Nxd4 {[%clk 0:03:00]}  Nf6 {[%clk 0:03:02]} 5. Nc3 {[%clk 0:03:01]}  a6 {[%clk 0:03:03]} 6. Bg5 {[%clk 0:03:01]}  e6 {[%clk 0:03:03]} 7. f4 {[%clk 0:03:00]}  Qb6 {[%clk 0:03:03]} 8. Qd2 {[%clk 0:02:53]}  Qxb2 {[%clk 0:03:03]} 9. Rb1 {[%clk 0:02:53]}  Qa3 {[%clk 0:03:04]} 10. e5 {[%clk 0:02:49]}  Nfd7 {[%clk 0:03:04]} 11. Rb3 {[%clk 0:02:41]}  Qa5 {[%clk 0:02:58]} 12. exd6 {[%clk 0:02:37]}  Nc5 {[%clk 0:02:50]} 13. Rb1 {[%clk 0:02:09]}  Bxd6 {[%clk 0:02:43]} 14. Bc4 {[%clk 0:02:08]}  O-O {[%clk 0:02:38]} 15. O-O {[%clk 0:02:06]}  b5 {[%clk 0:02:30]} 16. Be2 {[%clk 0:01:30]}  b4 {[%clk 0:02:22]} 17. Nb3 {[%clk 0:01:23]}  Qb6 {[%clk 0:02:11]} 18. Nd4 {[%clk 0:01:09]}  Qa5 {[%clk 0:01:31]} 19. Nd1 {[%clk 0:00:25]}  Ne4 {[%clk 0:01:31]} 20. Qe3 {[%clk 0:00:26]}  Nxg5 {[%clk 0:01:30]} 21. fxg5 {[%clk 0:00:26]}  Qe5 {[%clk 0:01:29]} 22. Qxe5 {[%clk 0:00:24]}  Bxe5 {[%clk 0:01:30]} 23. Nf3 {[%clk 0:00:22]}  Bd6 {[%clk 0:01:30]} 24. Ne3 {[%clk 0:00:22]}  Bc5 {[%clk 0:01:30]} 25. Kf2 {[%clk 0:00:22]}  Nc6 {[%clk 0:01:30]} 26. Rfc1 {[%clk 0:00:23]}  Ne7 {[%clk 0:01:27]} 27. c3 {[%clk 0:00:10]}  Nd5 {[%clk 0:01:27]} 0-1


[Site "https://www.chess.com"]

[Event "Titled Tuesday Blitz December 06 Early 2022"]
[White "Ohanyan, Emin"]
[Black "Kim, Sergey"]
[WhiteFideId "13312022"]
[BlackFideId "13700570"]
[WhiteElo "2352"]
[BlackElo "2628"]
[Result "1-0"]
[Round "07"]
[TimeControl "180+1"]
[Date "2022.12.06"]
[WhiteClock "0:00:19"]
[BlackClock "0:00:10"]

1. e4 {[%clk 0:02:40]}  e5 {[%clk 0:02:59]} 2. Nc3 {[%clk 0:02:34]}  Nf6 {[%clk 0:02:58]} 3. Bc4 {[%clk 0:02:35]}  Bc5 {[%clk 0:02:58]} 4. d3 {[%clk 0:02:36]}  Nc6 {[%clk 0:02:58]} 5. f4 {[%clk 0:02:36]}  d6 {[%clk 0:02:58]} 6. Nf3 {[%clk 0:02:33]}  Bg4 {[%clk 0:02:58]} 7. Na4 {[%clk 0:02:33]}  O-O {[%clk 0:02:57]} 8. Nxc5 {[%clk 0:02:32]}  dxc5 {[%clk 0:02:57]} 9. O-O {[%clk 0:02:33]}  Bxf3 {[%clk 0:02:50]} 10. Rxf3 {[%clk 0:02:26]}  Nd4 {[%clk 0:02:50]} 11. Rf1 {[%clk 0:02:09]}  exf4 {[%clk 0:02:34]} 12. Bxf4 {[%clk 0:02:06]}  b5 {[%clk 0:02:33]} 13. Bb3 {[%clk 0:02:07]}  c4 {[%clk 0:02:09]} 14. dxc4 {[%clk 0:02:04]}  Nxb3 {[%clk 0:02:00]} 15. axb3 {[%clk 0:02:04]}  bxc4 {[%clk 0:02:01]} 16. bxc4 {[%clk 0:01:51]}  Nxe4 {[%clk 0:01:57]} 17. Qd5 {[%clk 0:01:48]}  Nf6 {[%clk 0:01:50]} 18. Qxd8 {[%clk 0:01:41]}  Rfxd8 {[%clk 0:01:49]} 19. Bxc7 {[%clk 0:01:39]}  Rdc8 {[%clk 0:01:49]} 20. Be5 {[%clk 0:01:39]}  Ng4 {[%clk 0:01:45]} 21. Bd4 {[%clk 0:01:39]}  Rxc4 {[%clk 0:01:44]} 22. c3 {[%clk 0:01:39]}  a6 {[%clk 0:01:39]} 23. b4 {[%clk 0:01:24]}  Rcc8 {[%clk 0:01:33]} 24. Ra3 {[%clk 0:01:20]}  Nh6 {[%clk 0:01:28]} 25. Rfa1 {[%clk 0:01:18]}  Nf5 {[%clk 0:01:25]} 26. Bc5 {[%clk 0:01:18]}  Re8 {[%clk 0:01:19]} 27. Rxa6 {[%clk 0:01:14]}  Rad8 {[%clk 0:01:19]} 28. Rf1 {[%clk 0:01:09]}  g6 {[%clk 0:01:18]} 29. Bf2 {[%clk 0:00:44]}  Re2 {[%clk 0:01:13]} 30. Raa1 {[%clk 0:00:37]}  Rc2 {[%clk 0:00:54]} 31. Rac1 {[%clk 0:00:35]}  Rb2 {[%clk 0:00:52]} 32. Rfd1 {[%clk 0:00:33]}  Re8 {[%clk 0:00:50]} 33. Re1 {[%clk 0:00:29]}  Rd8 {[%clk 0:00:49]} 34. Rcd1 {[%clk 0:00:29]}  Rc8 {[%clk 0:00:49]} 35. Bc5 {[%clk 0:00:24]}  h5 {[%clk 0:00:46]} 36. Rf1 {[%clk 0:00:22]}  h4 {[%clk 0:00:40]} 37. Rf2 {[%clk 0:00:22]}  Rb3 {[%clk 0:00:39]} 38. Rc1 {[%clk 0:00:20]}  Re8 {[%clk 0:00:24]} 39. Rfc2 {[%clk 0:00:18]}  h3 {[%clk 0:00:19]} 40. gxh3 {[%clk 0:00:17]}  Nh4 {[%clk 0:00:19]} 41. Kf2 {[%clk 0:00:18]}  Re4 {[%clk 0:00:18]} 42. Bd6 {[%clk 0:00:17]}  f5 {[%clk 0:00:17]} 43. Bg3 {[%clk 0:00:16]}  g5 {[%clk 0:00:16]} 44. Bxh4 {[%clk 0:00:16]}  Rxh4 {[%clk 0:00:17]} 45. Rg1 {[%clk 0:00:16]}  Rxh3 {[%clk 0:00:15]} 46. Rxg5+ {[%clk 0:00:17]}  Kh7 {[%clk 0:00:16]} 47. Kg2 {[%clk 0:00:15]}  Rhxc3 {[%clk 0:00:11]} 48. Rxc3 {[%clk 0:00:16]}  Rxc3 {[%clk 0:00:12]} 49. Rxf5 {[%clk 0:00:17]}  Rb3 {[%clk 0:00:12]} 50. Rf4 {[%clk 0:00:13]}  Kg6 {[%clk 0:00:12]} 51. h4 {[%clk 0:00:14]}  Kh5 {[%clk 0:00:12]} 52. Kf1 {[%clk 0:00:14]}  Rb2 {[%clk 0:00:11]} 53. Ke1 {[%clk 0:00:15]}  Kg6 {[%clk 0:00:11]} 54. Kd1 {[%clk 0:00:15]}  Kg7 {[%clk 0:00:09]} 55. Kc1 {[%clk 0:00:16]}  Rb3 {[%clk 0:00:09]} 56. Kc2 {[%clk 0:00:16]}  Rh3 {[%clk 0:00:09]} 57. b5 {[%clk 0:00:17]}  Rh2+ {[%clk 0:00:09]} 58. Kb3 {[%clk 0:00:17]}  Rh3+ {[%clk 0:00:09]} 59. Kb4 {[%clk 0:00:17]}  Rh1 {[%clk 0:00:10]} 60. Kc5 {[%clk 0:00:18]}  Rc1+ {[%clk 0:00:10]} 61. Kb6 {[%clk 0:00:19]} 1-0


[Site "https://www.chess.com"]

[Event "Titled Tuesday Blitz December 06 Early 2022"]
[White "Oparin, Grigoriy"]
[Black "Piesik, Piotr"]
[WhiteFideId "24125890"]
[BlackFideId "1136194"]
[WhiteElo "2641"]
[BlackElo "2316"]
[Result "1-0"]
[Round "07"]
[TimeControl "180+1"]
[Date "2022.12.06"]
[WhiteClock "0:00:18"]
[BlackClock "0:00:06"]

1. Nf3 {[%clk 0:02:52]}  Nf6 {[%clk 0:02:56]} 2. g3 {[%clk 0:02:53]}  g6 {[%clk 0:02:56]} 3. c4 {[%clk 0:02:53]}  Bg7 {[%clk 0:02:56]} 4. Bg2 {[%clk 0:02:54]}  O-O {[%clk 0:02:56]} 5. Nc3 {[%clk 0:02:55]}  c6 {[%clk 0:02:55]} 6. e4 {[%clk 0:02:55]}  d5 {[%clk 0:02:55]} 7. cxd5 {[%clk 0:02:56]}  cxd5 {[%clk 0:02:56]} 8. e5 {[%clk 0:02:57]}  Ne4 {[%clk 0:02:56]} 9. d4 {[%clk 0:02:57]}  Bg4 {[%clk 0:02:54]} 10. O-O {[%clk 0:02:57]}  Nc6 {[%clk 0:02:53]} 11. h3 {[%clk 0:02:58]}  Bxf3 {[%clk 0:02:51]} 12. Bxf3 {[%clk 0:02:59]}  Nxc3 {[%clk 0:02:51]} 13. bxc3 {[%clk 0:03:00]}  e6 {[%clk 0:02:51]} 14. h4 {[%clk 0:02:59]}  Na5 {[%clk 0:02:50]} 15. h5 {[%clk 0:02:59]}  Re8 {[%clk 0:02:46]} 16. Kg2 {[%clk 0:02:51]}  g5 {[%clk 0:02:43]} 17. h6 {[%clk 0:02:50]}  Bf8 {[%clk 0:02:36]} 18. Rh1 {[%clk 0:02:47]}  Be7 {[%clk 0:02:35]} 19. Be2 {[%clk 0:02:43]}  Rc8 {[%clk 0:02:33]} 20. Bd2 {[%clk 0:02:43]}  Kh8 {[%clk 0:02:25]} 21. Rh5 {[%clk 0:02:40]}  Rg8 {[%clk 0:02:22]} 22. Rb1 {[%clk 0:02:37]}  b6 {[%clk 0:02:20]} 23. Bd3 {[%clk 0:02:35]}  Nc4 {[%clk 0:02:20]} 24. Bc1 {[%clk 0:02:28]}  f5 {[%clk 0:02:10]} 25. exf6 {[%clk 0:02:24]}  Bxf6 {[%clk 0:02:10]} 26. Qg4 {[%clk 0:02:23]}  Qe7 {[%clk 0:02:03]} 27. a4 {[%clk 0:02:22]}  e5 {[%clk 0:01:47]} 28. Rb5 {[%clk 0:02:07]}  e4 {[%clk 0:01:37]} 29. Bxc4 {[%clk 0:02:07]}  dxc4 {[%clk 0:01:26]} 30. Bxg5 {[%clk 0:02:04]}  e3 {[%clk 0:01:26]} 31. fxe3 {[%clk 0:01:55]}  Bxg5 {[%clk 0:01:22]} 32. Rhxg5 {[%clk 0:01:54]}  Qxe3 {[%clk 0:01:20]} 33. Kh3 {[%clk 0:01:31]}  Rcf8 {[%clk 0:01:00]} 34. Rxg8+ {[%clk 0:00:44]}  Rxg8 {[%clk 0:01:00]} 35. Qf4 {[%clk 0:00:45]}  Qe6+ {[%clk 0:00:55]} 36. g4 {[%clk 0:00:32]}  Rg6 {[%clk 0:00:54]} 37. Rh5 {[%clk 0:00:32]}  Rf6 {[%clk 0:00:43]} 38. Qb8+ {[%clk 0:00:32]}  Qg8 {[%clk 0:00:43]} 39. Qxg8+ {[%clk 0:00:31]}  Kxg8 {[%clk 0:00:43]} 40. Kg3 {[%clk 0:00:30]}  Rf1 {[%clk 0:00:40]} 41. Rg5+ {[%clk 0:00:29]}  Kf8 {[%clk 0:00:39]} 42. Rf5+ {[%clk 0:00:29]}  Rxf5 {[%clk 0:00:34]} 43. gxf5 {[%clk 0:00:30]}  a5 {[%clk 0:00:33]} 44. Kf4 {[%clk 0:00:28]}  Ke7 {[%clk 0:00:33]} 45. Ke5 {[%clk 0:00:25]}  b5 {[%clk 0:00:33]} 46. axb5 {[%clk 0:00:26]}  a4 {[%clk 0:00:33]} 47. f6+ {[%clk 0:00:25]}  Kf7 {[%clk 0:00:33]} 48. b6 {[%clk 0:00:25]}  a3 {[%clk 0:00:33]} 49. b7 {[%clk 0:00:26]}  a2 {[%clk 0:00:33]} 50. b8=Q {[%clk 0:00:27]}  a1=Q {[%clk 0:00:33]} 51. Qc7+ {[%clk 0:00:26]}  Kg6 {[%clk 0:00:34]} 52. Qg7+ {[%clk 0:00:24]}  Kh5 {[%clk 0:00:34]} 53. f7 {[%clk 0:00:21]}  Qa5+ {[%clk 0:00:28]} 54. Kf4 {[%clk 0:00:20]}  Qd5 {[%clk 0:00:06]} 55. Qg4+ {[%clk 0:00:18]} 1-0


[Site "https://www.chess.com"]